{"text_format":"1","workbook":"xlsx","n_sheets":8,"sheets":["Reference","Community Form","Public Premises Form","Health Centre Form","Options and Tools","Setup Linkages","IGNORE - Name Storage","Learning Institutions Form"],"not_rendered":{"charts":0,"images":0,"macros":1,"external_links":0,"defined_names":26,"comments":0,"pivot_tables":0},"unopened":[],"bounds":{"document_bytes":16777216,"sheet_cells":100000,"rows_first":2000,"rows_last":500,"rows_between":2000,"halvings":0,"cell_chars":16384,"cell_head_chars":4096},"cells_cut":0,"cells_raw":0,"read":"whole","date_system":"1900"}

{"sheet":"Reference","index":0,"n_rows":7,"n_cols":79,"rows_kept":7,"cut":false,"hidden":true,"merged":[[0,68,0,71],[1,68,1,69],[5,68,5,69],[6,68,6,70],[0,76,0,79],[1,76,1,77],[5,76,5,77],[6,76,6,78],[0,72,0,75],[1,72,1,73],[5,72,5,73],[6,72,6,74],[0,60,0,63],[1,60,1,61],[5,60,5,61],[6,60,6,62],[0,64,0,67],[1,64,1,65],[5,64,5,65],[6,64,6,66],[0,52,0,55],[1,52,1,53],[5,52,5,53],[6,52,6,54],[0,56,0,59],[1,56,1,57],[5,56,5,57],[6,56,6,58],[0,44,0,47],[1,44,1,45],[5,44,5,45],[6,44,6,46],[0,48,0,51],[1,48,1,49],[5,48,5,49],[6,48,6,50],[0,36,0,39],[1,36,1,37],[5,36,5,37],[6,36,6,38],[0,40,0,43],[1,40,1,41],[5,40,5,41],[6,40,6,42],[0,24,0,27],[1,24,1,25],[5,24,5,25],[6,24,6,26],[0,32,0,35],[1,32,1,33],[5,32,5,33],[6,32,6,34],[0,28,0,31],[1,28,1,29],[5,28,5,29],[6,28,6,30],[6,16,6,18],[0,20,0,23],[1,20,1,21],[5,20,5,21],[6,20,6,22],[0,16,0,19],[1,16,1,17],[5,16,5,17],[6,0,6,2],[0,4,0,7],[1,4,1,5],[5,4,5,5],[6,4,6,6],[0,0,0,3],[1,0,1,1],[5,0,5,1],[0,8,0,11],[1,8,1,9],[5,8,5,9],[6,8,6,10],[0,12,0,15],[1,12,1,13],[5,12,5,13],[6,12,6,14]]}
["Basic Latrine (Permeable Floor, no DHC) coverage",null,null,null,"Basic Latrine (Permeable Floor, with DHC) coverage",null,null,null,"Basic Latrine (Impermeable Floor, no DHC) coverage",null,null,null,"Improved Latrines (Impermeable Floor, with DHC) coverage",null,null,null,"Total Basic Latrine coverage",null,null,null,"Total Improved Latrine coverage",null,null,null,"Total Latrine coverage",null,null,null,"Unsatisfactory Latrines Coverage",null,null,null,"Handwashing Facilities without soap coverage",null,null,null,"Handwashing Facilities with soap coverage",null,null,null,"Total Handwashing Facilities coverage",null,null,null,"Waste Management System Coverage",null,null,null,"Water Coverage (Functional)",null,null,null,"Water Point Functionality Rate",null,null,null,"Water Coverage (Functional w/ Clean Surroundings)",null,null,null,"Water Point Functionality Rate (w/ Clean Surroundings)",null,null,null,"Triggered in CLTS ",null,null,null,"Awaiting Verification",null,null,null,"Verified ODF",null,null,null,"Verified ODF++"]
["Greater Than",null,{"$f":"C3","v":0.75},null,"Greater Than",null,{"$f":"G3","v":0.75},null,"Greater Than",null,{"$f":"K3","v":0.75},null,"Greater Than",null,{"$f":"O3","v":0.75},null,"Greater Than",null,{"$f":"S3","v":0.75},null,"Greater Than",null,{"$f":"W3","v":0.75},null,"Greater Than",null,{"$f":"AA3","v":0.75},null,"Greater Than",null,{"$f":"AE3","v":0.75},null,"Greater Than",null,{"$f":"AI3","v":0.75},null,"Greater Than",null,{"$f":"AM3","v":0.75},null,"Greater Than",null,{"$f":"AQ3","v":0.75},null,"Greater Than",null,{"$f":"AU3","v":0.75},null,"Greater Than",null,{"$f":"AY3","v":0.75},null,"Greater Than",null,{"$f":"BC3","v":0.75},null,"Greater Than",null,{"$f":"BG3","v":0.75},null,"Greater Than",null,{"$f":"BK3","v":0.75},null,"Greater Than",null,{"$f":"BO3","v":0.75},null,"Greater Than",null,{"$f":"BS3","v":0.75},null,"Greater Than",null,{"$f":"BW3","v":0.25},null,"Greater Than",null,{"$f":"CA3","v":0.75}]
[{"$f":"C4","v":0.5},"To",0.75,null,{"$f":"G4","v":0.5},"To",0.75,null,{"$f":"K4","v":0.5},"To",0.75,null,{"$f":"O4","v":0.5},"To",0.75,null,{"$f":"S4","v":0.5},"To",0.75,null,{"$f":"W4","v":0.5},"To",0.75,null,{"$f":"AA4","v":0.5},"To",0.75,null,{"$f":"AE4","v":0.5},"To",0.75,null,{"$f":"AI4","v":0.5},"To",0.75,null,{"$f":"AM4","v":0.5},"To",0.75,null,{"$f":"AQ4","v":0.5},"To",0.75,null,{"$f":"AU4","v":0.5},"To",0.75,null,{"$f":"AY4","v":0.5},"To",0.75,null,{"$f":"BC4","v":0.5},"To",0.75,null,{"$f":"BG4","v":0.5},"To",0.75,null,{"$f":"BK4","v":0.5},"To",0.75,null,{"$f":"BO4","v":0.5},"To",0.75,null,{"$f":"BS4","v":0.5},"To",0.75,null,{"$f":"BW4","v":0.1},"To",0.25,null,{"$f":"CA4","v":0.5},"To",0.75]
[{"$f":"C5","v":0.25},"To",0.5,null,{"$f":"G5","v":0.25},"To",0.5,null,{"$f":"K5","v":0.25},"To",0.5,null,{"$f":"O5","v":0.25},"To",0.5,null,{"$f":"S5","v":0.25},"To",0.5,null,{"$f":"W5","v":0.25},"To",0.5,null,{"$f":"AA5","v":0.25},"To",0.5,null,{"$f":"AE5","v":0.25},"To",0.5,null,{"$f":"AI5","v":0.25},"To",0.5,null,{"$f":"AM5","v":0.25},"To",0.5,null,{"$f":"AQ5","v":0.25},"To",0.5,null,{"$f":"AU5","v":0.25},"To",0.5,null,{"$f":"AY5","v":0.25},"To",0.5,null,{"$f":"BC5","v":0.25},"To",0.5,null,{"$f":"BG5","v":0.25},"To",0.5,null,{"$f":"BK5","v":0.25},"To",0.5,null,{"$f":"BO5","v":0.25},"To",0.5,null,{"$f":"BS5","v":0.25},"To",0.5,null,{"$f":"BW5","v":0.05},"To",0.1,null,{"$f":"CA5","v":0.25},"To",0.5]
[{"$f":"C6","v":0.1},"To",0.25,null,{"$f":"G6","v":0.1},"To",0.25,null,{"$f":"K6","v":0.1},"To",0.25,null,{"$f":"O6","v":0.1},"To",0.25,null,{"$f":"S6","v":0.1},"To",0.25,null,{"$f":"W6","v":0.1},"To",0.25,null,{"$f":"AA6","v":0.1},"To",0.25,null,{"$f":"AE6","v":0.1},"To",0.25,null,{"$f":"AI6","v":0.1},"To",0.25,null,{"$f":"AM6","v":0.1},"To",0.25,null,{"$f":"AQ6","v":0.1},"To",0.25,null,{"$f":"AU6","v":0.1},"To",0.25,null,{"$f":"AY6","v":0.1},"To",0.25,null,{"$f":"BC6","v":0.1},"To",0.25,null,{"$f":"BG6","v":0.1},"To",0.25,null,{"$f":"BK6","v":0.1},"To",0.25,null,{"$f":"BO6","v":0.1},"To",0.25,null,{"$f":"BS6","v":0.1},"To",0.25,null,{"$f":"BW6","v":0.02},"To",0.05,null,{"$f":"CA6","v":0.1},"To",0.25]
["Less Than",null,0.1,null,"Less Than",null,0.1,null,"Less Than",null,0.1,null,"Less Than",null,0.1,null,"Less Than",null,0.1,null,"Less Than",null,0.1,null,"Less Than",null,0.1,null,"Less Than",null,0.1,null,"Less Than",null,0.1,null,"Less Than",null,0.1,null,"Less Than",null,0.1,null,"Less Than",null,0.1,null,"Less Than",null,0.1,null,"Less Than",null,0.1,null,"Less Than",null,0.1,null,"Less Than",null,0.1,null,"Less Than",null,0.1,null,"Less Than",null,0.1,null,"Less Than",null,0.02,null,"Less Than",null,0.1]
["No Data",null,null,null,"No Data",null,null,null,"No Data",null,null,null,"No Data",null,null,null,"No Data",null,null,null,"No Data",null,null,null,"No Data",null,null,null,"No Data",null,null,null,"No Data",null,null,null,"No Data",null,null,null,"No Data",null,null,null,"No Data",null,null,null,"No Data",null,null,null,"No Data",null,null,null,"No Data",null,null,null,"No Data",null,null,null,"No Data",null,null,null,"No Data",null,null,null,"No Data",null,null,null,"No Data"]

{"sheet":"Community Form","index":1,"n_rows":21,"n_cols":57,"rows_kept":21,"cut":false,"hidden":false,"merged":[[3,25,3,27],[3,28,3,29],[3,30,3,32],[3,33,3,35],[1,0,1,1],[2,0,2,1],[3,11,3,13],[3,14,3,16],[3,17,3,18],[3,22,3,24],[3,48,3,53],[3,54,3,55],[3,56,3,58],[3,59,3,61],[4,56,4,69]]}
[]
["Name of HSA",null,null,null,null,"HSA Phone Number:"]
["Health Centre",null,null,null,null,"Health Centre Code: "]
[null,null,null,null,null,null,null,null,null,null,null,"BASIC LATRINES  ",null,null,"IMPROVED LATRINE ",null,null,"HANDWASHING FACILITIES   ",null,null,null,null,"BOREHOLES",null,null,"COMMUNAL TAPS / KIOSKS",null,null,"INDIVIDUAL TAPS",null,"PROTECTED SHALLOW WELLS",null,null,"PROTECTED                   SPRINGS",null,null,null,null,null,null,null,null,null,null,null,null,null,null,"CBM",null,null,null,null,null,"AM"]
["#","Date of Data Collection","Name of Village","Village Code","GVH","GVH Code","TA","TA Code","Village Population","Number of Households","1. Unsatisfactory Latrines","2. Permeable Floor, No DHC","3. Permeable Floor, with DHC","4. Impermeable Floor, No DHC","5. Impermeable Floor + DHC","6. Composting Latrines (EcoSan)","7. Households With Flush Toilets","8. Handwashing Facilities without Soap","9. Hand Washing Facilities with Soap","10. Number of Households with Properly Functioning Waste Management System ","#","Name of Village","11. Functional Clean Surroundings","12. Functional Without Clean Surroundings","13. Non-Functional","14. Functional Clean Surroundings","15. Functional Without Clean Surroundings","16. Non-Functional","17. Functional","18. Non-Functional","19. Functional Clean Surroundings","20. Functional Without Clean Surroundings","21. Non-Functional","22. Functional Clean Surroundings","23. Functional Without Clean Surroundings","24. Non-Functional","25. Triggered in CLTS? (Yes, No)","26. Date Triggered","27. Date of Follow-up 1","28. Date of Follow-up 2","29. Date of Follow-up 3","30. Date of Follow-up 4","31. Verified ODF? (Yes, No)","32. Date Declared ODF","33. Verified ODF ++?  (Yes, No)","34. Date Declared ODF ++","#","Name of Village","35. No. of WPC/VHWC","36. No. of functioning and/or active WPC/VHWC at this moment","37. No. of WPC/VHWC trained in initial CBM","38. Year trained \nin initial CBM","39. No. of WPC/VHWC trained in CBM refresher","40. Year trained \nin CBM refresher course","41. No.of preventive maintenance contract between AM and WPC","42. Year.of preventive maintenance contract between AM and WPC","Remark"]
[1,null,null,null,null,null,null,null,null,null,null,null,null,null,null,null,null,null,null,null,1,null,null,null,null,null,null,null,null,null,null,null,null,null,null,null,null,null,null,null,null,null,null,null,null,null,1]
[{"$f":"A6+1","v":2},null,null,null,null,null,null,null,null,null,null,null,null,null,null,null,null,null,null,null,{"$f":"U6+1","v":2},null,null,null,null,null,null,null,null,null,null,null,null,null,null,null,null,null,null,null,null,null,null,null,null,null,{"$f":"AU6+1","v":2}]
[{"$f":"A7+1","v":3},null,null,null,null,null,null,null,null,null,null,null,null,null,null,null,null,null,null,null,{"$f":"U7+1","v":3},null,null,null,null,null,null,null,null,null,null,null,null,null,null,null,null,null,null,null,null,null,null,null,null,null,{"$f":"AU7+1","v":3}]
[4,null,null,null,null,null,null,null,null,null,null,null,null,null,null,null,null,null,null,null,4,null,null,null,null,null,null,null,null,null,null,null,null,null,null,null,null,null,null,null,null,null,null,null,null,null,4]
[5,null,null,null,null,null,null,null,null,null,null,null,null,null,null,null,null,null,null,null,5,null,null,null,null,null,null,null,null,null,null,null,null,null,null,null,null,null,null,null,null,null,null,null,null,null,5]
[6,null,null,null,null,null,null,null,null,null,null,null,null,null,null,null,null,null,null,null,6,null,null,null,null,null,null,null,null,null,null,null,null,null,null,null,null,null,null,null,null,null,null,null,null,null,6]
[7,null,null,null,null,null,null,null,null,null,null,null,null,null,null,null,null,null,null,null,7,null,null,null,null,null,null,null,null,null,null,null,null,null,null,null,null,null,null,null,null,null,null,null,null,null,7]
[8,null,null,null,null,null,null,null,null,null,null,null,null,null,null,null,null,null,null,null,8,null,null,null,null,null,null,null,null,null,null,null,null,null,null,null,null,null,null,null,null,null,null,null,null,null,8]
[9,null,null,null,null,null,null,null,null,null,null,null,null,null,null,null,null,null,null,null,9,null,null,null,null,null,null,null,null,null,null,null,null,null,null,null,null,null,null,null,null,null,null,null,null,null,9]
[10,null,null,null,null,null,null,null,null,null,null,null,null,null,null,null,null,null,null,null,10,null,null,null,null,null,null,null,null,null,null,null,null,null,null,null,null,null,null,null,null,null,null,null,null,null,10]
[11,null,null,null,null,null,null,null,null,null,null,null,null,null,null,null,null,null,null,null,11,null,null,null,null,null,null,null,null,null,null,null,null,null,null,null,null,null,null,null,null,null,null,null,null,null,11]
[12,null,null,null,null,null,null,null,null,null,null,null,null,null,null,null,null,null,null,null,12,null,null,null,null,null,null,null,null,null,null,null,null,null,null,null,null,null,null,null,null,null,null,null,null,null,12]
[13,null,null,null,null,null,null,null,null,null,null,null,null,null,null,null,null,null,null,null,13,null,null,null,null,null,null,null,null,null,null,null,null,null,null,null,null,null,null,null,null,null,null,null,null,null,13]
[14,null,null,null,null,null,null,null,null,null,null,null,null,null,null,null,null,null,null,null,14,null,null,null,null,null,null,null,null,null,null,null,null,null,null,null,null,null,null,null,null,null,null,null,null,null,14]
[15,null,null,null,null,null,null,null,null,null,null,null,null,null,null,null,null,null,null,null,15,null,null,null,null,null,null,null,null,null,null,null,null,null,null,null,null,null,null,null,null,null,null,null,null,null,15]
[null,null,"Comments on Form: ",null,null,null,null,null,null,null,null,null,null,null,null,null,null,null,null,null,null,"Comments on Form: ",null,null,null,null,null,null,null,null,null,null,null,null,null,null,null,null,null,null,null,null,null,null,null,null,null,"Comments on Form: "]

{"sheet":"Public Premises Form","index":2,"n_rows":12,"n_cols":22,"rows_kept":12,"cut":false,"hidden":false,"merged":[[10,11,10,15],[10,16,10,19],[1,0,2,0],[1,1,2,2],[1,5,1,7],[2,4,4,4],[4,0,5,0],[4,1,5,2]]}
[null,null,null,null,null,null,null,null,"Solid Waste Disposal List"]
["Name of HSA",null,null,null,null,"Water Source List",null,null,"1. Disposal in Rubbish Pit"]
[null,null,null,null,"Public Premesis List","1. Piped Water / Tap",null,null,"2. Disposal in Bin/Basket"]
[null,null,null,null,null,"2. Borehole",null,null,"3. Composting"]
["Health Centre",null,null,null,null,"3. Protected Shallow Well",null,null,"4. Burning"]
[null,null,null,null,"1. Market","4. Unprotected Shalow Well",null,null,"5. Burying underground"]
[null,null,null,null,"2. Bus Depot","5. Protected Spring",null,null,"6. Pit Latrine"]
[null,null,null,null,"3. Fishing Dock","6. Unprotected Spring",null,null,"7. Public Dumping Site"]
[null,null,null,null,"4. Church","7. River/Stream/Lake/Dam",null,null,"8. Open Dumping"]
[null,null,null,null,"5. Other","8. Other",null,null,"9. Other"]
[null,null,null,null,null,null,null,null,null,null,null,"MALE",null,null,null,null,"FEMALE"]
["Date of data collection","Traditional Authority","Name of Public Premises","Type of Public Premises   \n(Pick from List)","Approximate Number of Patrons per Day","Number of Functioning Protected Water Sources","Main Source of Water \n(Pick from List)","Is there a Clean Surrounding Area for the Main Water Source? (Yes=1, No=0)","Main Solid Waste Disposal Method  \n(Pick from List)","If there is animal waste, Properly Functioning Animal Waste Pit","Name of Public Premises","Number of Functional Basic Latrines","Number of Functional Improved Latrines","Number of Urinals","Number of Flushing Toilets ","Number of Toilets with access for the Physically Challenged ","Number of Functional Basic Latrines","Number of Functional Improved Latrines","Number of Flushing Toilets ","Number of Toilets with access for the Physically Challenged ","Number of Handwashing Facilities without Soap","Number of Handwashing Facilities with Soap"]

{"sheet":"Health Centre Form","index":3,"n_rows":31,"n_cols":4,"rows_kept":31,"cut":false,"hidden":false,"merged":[[21,3,30,4],[22,1,22,2],[23,1,23,2],[24,1,24,2],[25,1,25,2],[21,1,21,2],[26,1,26,2],[27,1,27,2],[28,1,28,2],[29,1,29,2],[30,1,30,2],[1,2,5,2],[6,2,9,2],[10,2,13,2],[14,2,16,2],[17,2,19,2]]}
[]
["Date of Data Collection",null,"Male Patrons","Number of Functional Basic Latrines"]
["Name of Data Collector",null,null,"Number of Functional Improved Latrines"]
["TA",null,null,"Number of Urinals"]
["Name Health Facility",null,null,"Number of Flushing Toilets "]
["Health Facility Code",null,null,"Number of Toilets with access for the Physically Challenged "]
["Type of Facility (Health Center, Dispensary)",null,"Female Patrons ","Number of Functional Basic Latrines"]
["Operator (Gov't, Private, CHAM)",null,null,"Number of Functional Improved Latrines"]
["Aproximate Number of Female Patrons per Day",null,null,"Number of Flushing Toilets "]
["Aproximate Number of Male Patrons per Day",null,null,"Number of Toilets with access for the Physically Challenged "]
["Total number of Male Staff",null,"Male Staff","Number of Functional Basic Latrines"]
["Total number of Female Staff",null,null,"Number of Functional Improved Latrines"]
["Functional Reticulated Water System Available? (Yes=1, No=0)",null,null,"Number of Urinals"]
["Functioning Stand-Alone Water Point (Yes=1, No=0)",null,null,"Number of Functional Flushing Toilets "]
["Stand Alone Water Source \n(Pick from List)",null,"Female Staff","Number of Functional Basic Latrines"]
["Is there a Clean Surrounding Area for the Stand Alone Water Source?",null,null,"Number of Functional Improved Latrines"]
["Main Solid Waste Disposal Method (Pick from list) ",null,null,"Number of Functional Flushing Toilets "]
["Functioning Incinerator (Yes=1, No=0)",null,null,"Number of Handwashing Facilities without Soap"]
["Properly Functioning Placenta Pits (Yes=1, No=0)",null,null,"Number of Handwashing Facilities with Soap"]
["Properly Functioning Liquid Waste Management System (Yes=1, No=0)",null,null,"Number of Bath Shelters in a usable state "]
[]
["Water Source List","Solid Waste Disposal List",null,"Comments"]
["1. Piped Water / Tap","1. Disposal in Rubbish Pit"]
["2. Borehole","2. Disposal in Bin/Basket"]
["3. Protected Shallow Well","3. Composting"]
["4. Unprotected Shalow Well","4. Burning"]
["5. Protected Spring","5. Burying underground"]
["6. Unprotected Spring","6. Pit Latrine"]
["7. River/Stream/Lake/Dam","7. Public Dumping Site"]
["8. Other","8. Open Dumping"]
[null,"9. Other"]

{"sheet":"Options and Tools","index":4,"n_rows":3,"n_cols":2,"rows_kept":3,"cut":false,"hidden":true,"merged":[]}
[]
[]
[null,1]

{"sheet":"Setup Linkages","index":5,"n_rows":2,"n_cols":11,"rows_kept":2,"cut":false,"hidden":true,"merged":[]}
["Map Sheet Name","Table Sheet Name","Table - First Row","Table - First Column","Pivot Table","Pivot Row Field","Coordinate Source","Coordinate Sheet Name","File Path Type","File Path","Reference Sheet"]
["Map","Community Analysis",4,1,"Yes","TA","Worksheet","Mchinji Community Data",null,null,"Reference"]

{"sheet":"IGNORE - Name Storage","index":6,"n_rows":15,"n_cols":2,"rows_kept":15,"cut":false,"hidden":true,"merged":[]}
["Worksheets","PivotFields------->"]
["Community Data","Name of Village"]
["Community Analysis","GVH"]
["Reference","TA"]
["Community Form"]
["Public Premises Data"]
["Public Premises Analysis"]
["Public Premises Form"]
["Health Center Data"]
["Health Center Analysis"]
["Health Centre Form"]
["Learning Institutions Data"]
["Learning Instituions Analysis"]
["Map"]
["Learning Institutions Form"]

{"sheet":"Learning Institutions Form","index":7,"n_rows":12,"n_cols":33,"rows_kept":12,"cut":false,"hidden":false,"merged":[[0,0,1,1],[0,2,1,4],[0,11,0,12],[2,0,3,1],[2,2,3,4],[10,14,10,18],[10,19,10,23],[10,24,10,27],[10,28,10,30],[4,0,5,1],[4,2,5,4]]}
["Name of Data Collector",null,null,null,null,null,null,null,null,null,null,"Solid Waste Disposal List"]
[null,null,null,null,null,null,null,null,null,"Water Source List",null,"1. Disposal in Rubbish Pit"]
["Position of Data Collector",null,null,null,null,null,null,null,null,"1. Piped Water / Tap",null,"2. Disposal in Bin/Basket"]
[null,null,null,null,null,null,null,null,null,"2. Borehole",null,"3. Composting"]
[null,null,null,null,null,null,null,null,null,"3. Protected Shallow Well",null,"4. Burning"]
[null,null,null,null,null,null,null,null,null,"4. Unprotected Shalow Well",null,"5. Burying underground"]
[null,null,null,null,null,null,null,null,null,"5. Protected Spring",null,"6. Pit Latrine"]
[null,null,null,null,null,null,null,null,null,"6. Unprotected Spring",null,"7. Public Dumping Site"]
[null,null,null,null,null,null,null,null,null,"7. River/Stream/Lake/Dam",null,"8. Open Dumping"]
[null,null,null,null,null,null,null,null,null,"8. Other",null,"9. Other"]
[null,null,null,null,null,null,null,null,null,null,null,null,null,null,"Male Students ",null,null,null,null,"Female Students ",null,null,null,null,"Male Teachers",null,null,null,"Female Teachers"]
["Date of Data Collection","Zone Name","Traditional Authority","School Number","School Name","Total Boys Enrolment","Total Girls Enrolment","Total number of Male Teachers","Total number of Female Teachers","Number of Functioning Protected Water Sources","Main Source of Water \n(Pick from List)","Is there a Clean Surrounding Area for the Main Water Source?","Main Solid Waste Disposal Method \n(Pick from list) ","School Name","Number of Functional Basic Latrines","Number of Functional Improved Latrines","Number of Urinals","Number of Flushing Toilets ","Number of Toilets with access for the Physically Challenged ","Number of Functional Basic Latrines","Number of Functional Improved Latrines","Number of Urinals","Number of Flushing Toilets ","Number of Toilets with access for the Physically Challenged ","Number of Functional Basic Latrines","Number of Functional Improved Latrines","Number of Urinals","Number of Flushing Toilets ","Number of Functional Basic Latrines","Number of Functional Improved Latrines","Number of Flushing Toilets ","Number of Handwashing Facilities without Soap","Number of Handwashing Facilities with Soap"]